bitfinex-derivatives/quotes_ETHF0:USTF0_20250604
["timestamp","ask_amount","ask_price","bid_price","bid_amount"]
[1749022487072,1.08041351,2628.7,2628.6,18.12538]
[1749022488873,1.84076351,2628.7,2628.6,18.12538]
[1749022490377,1.84076351,2628.7,2628.6,0.76038]
[1749022490578,1.84076351,2628.7,2628.6,18.12438]
[1749022490773,1.84076351,2628.7,2628.3,5.1289]
[1749022490774,6.18916351,2628.7,2628.3,5.1289]
[1749022491073,0.76044,2628.4,2628.3,5.88932]
[1749022491274,0.76043,2628.5,2628.4,0.76041]
[1749022493182,1.8712,2628.6,2628.5,0.76041]
[1749022493183,2.6316,2628.6,2628.5,0.76041]
[1749022493477,3.70680813,2628.6,2628.5,0.76041]
[1749022494878,3.70680813,2628.6,2628.5,18.12441]
[1749022495382,1.71530813,2628.6,2628.5,18.12441]
[1749022495981,1.07520813,2628.6,2628.5,18.12441]
[1749022496175,2.97617813,2628.6,2628.3,5.1289]
[1749022496376,0.76044,2628.4,2628.3,4.474]
[1749022496577,0.76044,2628.4,2628.3,21.838]
[1749022496780,2.4489068,2628.4,2628.3,4.474]
[1749022497078,3.6700068,2628.4,2628.3,21.838]
[1749022497278,0.7605,2628.3,2628.1,0.6331]
[1749022497478,0.7605,2628.3,2628.2,22.59747]
[1749022497681,3.05621753,2628.3,2628.2,22.59747]
[1749022498680,3.05621753,2628.3,2628.2,5.23347]
[1749022499080,3.05621753,2628.3,2628.2,22.59747]
[1749022500480,3.05621753,2628.3,2628.2,5.23349]
[1749022500775,3.05621753,2628.3,2627.9,5.23355]
[1749022500776,0.76057,2628.0,2627.9,5.23355]
[1749022500976,0.76057,2628.0,2627.9,22.59855]
[1749022501181,1.83471962,2628.0,2627.9,22.59855]
[1749022501387,1.07414962,2628.0,2627.9,22.59855]
[1749022501779,1.07414962,2628.0,2627.9,23.86755]
[1749022503189,0.7605,2628.2,2628.1,0.76052]
[1749022503484,1.83408706,2628.2,2628.1,0.76052]
[1749022505887,1.07358706,2628.2,2628.1,0.76052]
[1749022506889,1.83408706,2628.2,2628.1,18.12552]
[1749022507090,1.83310144,2628.2,2628.1,18.12552]
[1749022508094,1.83310144,2628.2,2628.1,0.76052]
[1749022508292,1.83310144,2628.2,2628.1,22.59852]
[1749022511195,1.8332227,2628.2,2628.1,22.59852]
[1749022512394,1.8332227,2628.2,2627.8,39.72038]
[1749022512395,0.76058,2627.9,2627.8,39.72038]
[1749022512591,1.8333027,2627.9,2627.8,61.55838]
[1749022513697,1.0727227,2627.9,2627.8,61.55838]
[1749022514897,1.40297,2628.0,2627.9,0.76058]
[1749022515098,2.47549674,2628.0,2627.9,0.76058]
[1749022515298,2.47549674,2628.0,2627.9,18.19262602]
[1749022515693,1.71492674,2628.0,2627.9,18.19262602]
[1749022516191,2.47547674,2628.0,2627.9,18.19262602]
[1749022517097,2.47547674,2628.0,2627.9,0.06704602]
[1749022517291,3.73877674,2628.0,2627.9,0.06704602]
[1749022517496,3.73877674,2628.0,2627.9,17.43204602]
[1749022517497,4.35867674,2628.0,2627.9,17.43204602]
[1749022517696,4.35867674,2628.0,2627.9,0.06704602]
[1749022517888,4.35867674,2628.0,2627.9,17.43204602]
[1749022518294,4.35867674,2628.0,2627.9,18.19262602]
[1749022518795,3.28615,2628.0,2627.9,17.43204602]
[1749022519097,4.35849814,2628.0,2627.9,17.43204602]
[1749022519693,0.76073,2627.5,2627.3,0.6664]
[1749022520001,0.76073,2627.5,2627.4,5.61342]
[1749022520206,0.76076,2627.4,2627.3,0.76074]
[1749022520397,0.76076,2627.4,2627.2,5.87037852]
[1749022520398,0.76076,2627.3,2627.2,5.87037852]
[1749022520701,1.83294012,2627.3,2627.2,22.60447852]
[1749022522108,1.83294012,2627.3,2627.2,0.00570852]
[1749022522299,8.13304012,2627.3,2627.2,0.00570852]
[1749022522506,0.7609,2626.8,2626.7,4.8537]
[1749022522705,0.7609,2626.8,2626.7,5.61462]
[1749022523001,1.82219407,2626.8,2626.7,22.98162]
[1749022523812,3.21350852,2627.0,2626.9,0.76087]
[1749022524109,4.2742401,2627.0,2626.9,0.76087]
[1749022524311,4.2742401,2627.0,2626.8,0.76088]
[1749022524609,1.82163158,2626.9,2626.8,0.76088]
[1749022526317,0.7609,2626.8,2626.7,22.98161]
[1749022528214,0.7609,2626.8,2626.7,4.473]
[1749022528415,0.7609,2626.8,2626.7,22.60493]
[1749022530716,0.7609,2626.8,2626.7,5.23393]
[1749022531017,0.7609,2626.8,2626.7,22.60393]
[1749022531219,0.76089,2626.9,2626.8,0.7609]
[1749022533121,0.7609,2626.8,2626.7,4.473]
[1749022533626,0.76096,2626.6,2626.5,0.00570852]
[1749022533823,0.76096,2626.6,2626.5,18.13869852]
[1749022534520,0.76096,2626.6,2626.5,17.37770852]
[1749022534717,0.76096,2626.6,2626.5,0.00570852]
[1749022535025,0.76107,2626.2,2626.1,4.474]
[1749022535324,0.76116,2625.9,2625.8,1.42229]
[1749022535522,0.76122,2625.7,2625.6,3.2078]
[1749022535820,0.76122,2625.7,2625.4,38.359]
[1749022535821,0.76127,2625.6,2625.5,0.76124]
[1749022536017,0.76127,2625.6,2625.5,18.13324]
[1749022536524,0.76127,2625.6,2625.5,17.372]
[1749022536822,0.76126,2625.6,2625.5,17.374]
[1749022537016,0.76124,2625.7,2625.6,0.76125]
[1749022537717,3.969,2625.8,2625.7,0.76122]
[1749022537922,0.7612,2625.8,2625.7,0.76122]
[1749022538619,3.2078,2626.1,2625.7,1.90306]
[1749022538816,0.6147,2626.4,2625.8,7.0423]
[1749022539022,3.96882,2626.5,2626.4,0.76102]
[1749022539318,4.4593,2626.8,2626.4,17.384]
[1749022539520,0.76095,2626.7,2626.6,0.76093]
[1749022540418,3.96872,2626.8,2626.7,0.76093]
[1749022541616,0.76092,2626.8,2626.7,0.76093]
[1749022545222,0.76093,2626.7,2626.6,5.23593]
[1749022547126,0.76091,2626.8,2626.7,0.76088]
[1749022547521,1.82021614,2626.8,2626.7,0.76088]
[1749022549929,1.82021614,2626.8,2626.7,0.82792602]
[1749022550232,0.76091,2626.8,2626.7,0.82792602]
[1749022550429,1.82150881,2626.8,2626.7,0.82792602]
[1749022551322,1.82150881,2626.8,2626.7,18.20292602]
[1749022551525,1.82150881,2626.8,2626.7,17.44204602]
[1749022551924,1.82150881,2626.8,2626.7,18.20297602]
[1749022552826,1.82150881,2626.8,2626.7,18.20297602]
[1749022553531,1.82150881,2626.8,2626.7,17.44204602]
[1749022553733,5.02930881,2626.8,2626.7,17.44204602]
[1749022554835,5.02930881,2626.8,2626.7,18.20297602]
[1749022557432,5.02930881,2626.8,2626.7,17.44104602]
[1749022557635,5.02930881,2626.8,2626.7,18.20197602]
[1749022558337,5.03001925,2626.8,2626.7,18.20197602]
[1749022558931,5.03001925,2626.8,2626.7,17.44104602]
[1749022559126,5.03001925,2626.8,2626.7,18.20197602]
[1749022559327,4.26910925,2626.8,2626.7,18.20197602]
[1749022559631,5.03000925,2626.8,2626.7,18.20197602]
[1749022559834,5.03000925,2626.8,2626.7,19.42707602]
[1749022560323,4.26910925,2626.8,2626.7,19.42707602]
[1749022560725,5.03000925,2626.8,2626.7,19.42707602]
[1749022560932,4.26910925,2626.8,2626.7,19.42707602]
[1749022561132,4.26923398,2626.8,2626.7,19.42707602]
[1749022562938,1.82233398,2626.8,2626.7,18.20197602]
[1749022563341,1.82233398,2626.8,2626.7,0.06704602]
[1749022563536,1.82233398,2626.8,2626.7,21.91504602]
[1749022563933,3.08423398,2626.8,2626.7,21.91504602]
[1749022564441,3.08423398,2626.8,2626.7,0.06704602]
[1749022564635,8.08423398,2626.8,2626.7,0.06704602]
[1749022564948,0.76099,2626.5,2626.4,4.474]
[1749022565136,4.26923398,2626.5,2626.1,0.76109]
[1749022565334,0.76116,2626.0,2625.9,4.474]
[1749022565643,0.76116,2626.0,2625.9,22.60915]
[1749022565840,1.82259398,2626.0,2625.9,22.60915]
[1749022566239,1.82259398,2626.0,2625.9,5.23516]
[1749022566446,1.82259398,2626.0,2625.9,21.848]
[1749022566647,1.82259398,2626.0,2625.9,21.85]
[1749022567146,1.82259398,2626.0,2625.9,22.61116]
[1749022568546,0.76128,2625.6,2625.5,0.76128]
[1749022568843,3.2078,2625.7,2625.6,0.76125]
[1749022569046,4.26468344,2625.7,2625.6,0.76125]
[1749022569544,5.02590344,2625.7,2625.6,0.76125]
[1749022570546,4.26468344,2625.7,2625.6,0.76125]
[1749022570745,5.02590344,2625.7,2625.6,0.76125]
[1749022571147,4.26468344,2625.7,2625.6,0.76125]
[1749022571649,3.2078,2625.7,2625.6,0.76125]
[1749022571849,3.96902,2625.7,2625.6,0.76125]
[1749022573554,3.96902,2625.7,2625.6,18.13825]
[1749022577849,3.96902,2625.7,2625.6,18.14025]
[1749022578046,3.96902,2625.7,2625.4,6.37726]
[1749022578047,0.76128,2625.5,2625.4,4.474]
[1749022578351,0.76128,2625.5,2625.4,21.853]
[1749022579454,0.76128,2625.5,2625.4,4.474]
[1749022579753,0.76128,2625.5,2625.4,21.854]
[1749022580146,0.76131,2625.4,2625.3,17.38570852]
[1749022580346,5.85991,2625.4,2625.3,0.00570852]
[1749022580556,6.91295871,2625.4,2625.3,0.00570852]
[1749022580754,5.85991,2625.4,2625.3,0.00570852]
[1749022581442,5.85991,2625.4,2625.3,0.76704852]
[1749022584746,3.2078,2625.4,2625.3,0.76704852]
[1749022584952,3.2078,2625.4,2625.3,1.41124852]
[1749022585155,3.2078,2625.4,2625.3,2.73764852]
[1749022585752,0.00570852,2625.6,2625.5,0.76128]
[1749022586552,1.81851438,2625.6,2625.5,0.76128]
[1749022587553,1.05726438,2625.6,2625.5,0.76128]
[1749022588659,1.05715051,2625.6,2625.5,0.76128]
[1749022589260,1.81840051,2625.6,2625.5,0.76128]
[1749022589952,1.05715051,2625.6,2625.5,0.76128]
[1749022590151,1.05715051,2625.6,2625.5,1.97978]
[1749022591256,1.81840051,2625.6,2625.5,1.97978]
[1749022591554,1.05715051,2625.6,2625.5,1.97978]
[1749022591759,1.81840051,2625.6,2625.5,1.97978]
[1749022592258,1.05715051,2625.6,2625.5,1.97978]
[1749022592458,1.81840051,2625.6,2625.5,1.97978]
[1749022592662,1.82077102,2625.6,2625.5,1.97978]
[1749022594364,1.82077102,2625.6,2625.5,2.04682602]
[1749022595153,1.05952102,2625.6,2625.5,2.04682602]
[1749022596255,1.05952102,2625.6,2625.5,0.82832602]
[1749022596463,1.82077102,2625.6,2625.5,18.21032602]
[1749022596659,1.82316862,2625.6,2625.5,18.21032602]
[1749022598960,1.06191862,2625.6,2625.5,18.21032602]
[1749022599157,1.06191862,2625.6,2625.5,19.49162602]
[1749022599661,1.06191862,2625.6,2625.5,22.69942602]
[1749022600257,0.00570852,2625.6,2625.5,22.69942602]
[1749022601965,0.00570852,2625.6,2625.5,5.31742602]
[1749022602167,0.00570852,2625.6,2625.5,0.82832602]
[1749022602366,0.76695852,2625.6,2625.5,5.30432602]
[1749022602558,0.76695852,2625.6,2625.5,22.68532602]
[1749022603065,1.82312633,2625.6,2625.5,22.68532602]
[1749022603361,3.03232633,2625.6,2625.5,22.68532602]
[1749022604265,3.03232633,2625.6,2625.5,4.54304602]
[1749022604465,3.03232633,2625.6,2625.5,0.06704602]
[1749022604769,3.03232633,2625.6,2625.5,17.44804602]
[1749022605464,3.03232633,2625.6,2625.5,18.20932602]
[1749022605966,3.03232633,2625.6,2625.5,17.44804602]
[1749022606170,3.05290687,2625.6,2625.5,17.44804602]
[1749022606466,3.05290687,2625.6,2625.5,18.20932602]
[1749022607074,1.84370687,2625.6,2625.5,17.44804602]
[1749022607457,1.84370687,2625.6,2625.5,18.20932602]
[1749022608165,1.08245687,2625.6,2625.5,18.20932602]
[1749022608863,1.08282951,2625.6,2625.5,18.86242602]
[1749022609369,1.84407951,2625.6,2625.5,18.86242602]
[1749022612765,1.84407951,2625.6,2625.5,0.06704602]
[1749022612970,1.84407951,2625.6,2625.5,17.44804602]
[1749022613366,2.49407951,2625.6,2625.5,17.44804602]
[1749022613972,2.49407951,2625.6,2625.5,18.20932602]
[1749022614167,1.84407951,2625.6,2625.5,18.20932602]
[1749022614674,1.08282951,2625.6,2625.5,18.20932602]
[1749022615869,3.2078,2626.1,2626.0,0.76113]
[1749022616177,3.2078,2626.5,2626.4,0.76102]
[1749022616368,0.76097,2626.6,2626.5,0.76099]
[1749022617174,0.76094,2626.7,2626.6,0.76093]
[1749022619674,0.76099,2626.6,2626.5,0.76098]
[1749022620480,0.76097,2626.7,2626.6,0.76094]
[1749022620774,3.97442852,2626.8,2626.7,0.76093]
[1749022621171,3.21350852,2626.8,2626.7,0.76093]
[1749022622078,3.97440852,2626.8,2626.7,0.76093]
[1749022622381,3.21350852,2626.8,2626.7,0.76093]
[1749022623291,3.97440852,2626.8,2626.7,0.76093]
[1749022625702,3.21350852,2626.8,2626.7,0.76093]
[1749022625890,3.21350852,2626.8,2626.7,0.82797602]
[1749022626597,3.97440852,2626.8,2626.7,0.82797602]
[1749022626797,3.21350852,2626.8,2626.7,0.82797602]
[1749022627606,3.97440852,2626.8,2626.7,0.82797602]
[1749022627798,3.21350852,2626.8,2626.7,0.82797602]
[1749022628200,0.00570852,2626.8,2626.7,5.82797602]
[1749022628497,0.00570852,2626.8,2626.7,6.46127602]
[1749022629000,3.2078,2627.7,2627.4,1.9018]
[1749022629197,3.96846,2627.7,2627.6,0.76067]
[1749022629504,3.2078,2627.7,2627.6,0.76067]
[1749022630102,0.76628852,2627.9,2627.8,0.76061]
[1749022630604,1.84695469,2627.9,2627.8,0.76061]
[1749022631199,1.84697034,2627.9,2627.8,0.76061]
[1749022631505,1.84697034,2627.9,2627.7,0.76062]
[1749022631506,0.76064,2627.8,2627.7,0.76062]
[1749022633203,0.76630852,2627.9,2627.8,0.76061]
[1749022634110,0.76065,2627.8,2627.7,0.76063]
[1749022638408,0.76065,2627.8,2627.7,18.12963]
[1749022641209,0.76065,2627.8,2627.7,18.19667602]
[1749022644612,1.84361889,2627.8,2627.7,18.19667602]
[1749022645416,1.08296889,2627.8,2627.7,18.19667602]
[1749022645617,1.84357889,2627.8,2627.7,18.19667602]
[1749022646911,0.76061,2627.8,2627.7,18.19667602]
[1749022647115,1.84485448,2627.8,2627.7,18.19667602]
[1749022649223,1.8454741,2627.8,2627.7,18.19667602]
[1749022649621,1.0848641,2627.8,2627.7,18.19667602]
[1749022651022,3.21350852,2627.9,2627.8,0.76061]
[1749022651223,1.09116582,2627.9,2627.8,0.76061]
[1749022654916,0.00570852,2627.9,2627.8,0.76061]
[1749022655315,1.09223825,2627.9,2627.8,2.07421]
[1749022656322,1.09223825,2627.9,2627.8,2.14125602]
[1749022656527,3.2078,2628.5,2628.4,0.76044]
[1749022656822,1.98335,2628.8,2628.7,0.76035]
[1749022657028,3.29235,2628.8,2628.7,0.76035]
[1749022657621,2.532,2628.8,2628.7,0.76035]
[1749022659025,0.76035,2628.7,2628.6,18.12436]
[1749022659231,0.76038,2628.6,2628.5,4.47670852]
[1749022659417,5.17858,2628.6,2628.5,21.83970852]
[1749022660323,5.17858,2628.6,2628.5,4.47670852]
[1749022660525,5.17858,2628.6,2628.5,21.83870852]
[1749022660725,0.76038,2628.7,2628.6,0.76035]
[1749022661928,1.223,2628.8,2628.7,0.76035]
[1749022662123,0.6106,2628.8,2628.7,0.76035]
[1749022663121,1.37092,2628.8,2628.7,0.76035]
[1749022668531,2.45141785,2628.8,2628.7,0.76035]
[1749022669834,3.74791785,2628.8,2628.7,0.76035]
[1749022670634,2.66742,2628.8,2628.7,0.76035]
[1749022670835,3.7478715,2628.8,2628.7,0.76035]
[1749022671833,3.7478715,2628.8,2628.7,22.58735]
[1749022674234,1.6910515,2628.8,2628.7,22.58735]
[1749022674836,1.69089639,2628.8,2628.7,22.58735]
[1749022675343,2.45121639,2628.8,2628.7,22.58735]
[1749022681544,2.45294319,2628.8,2628.7,22.58735]
[1749022685347,2.45434235,2628.8,2628.7,22.58735]
[1749022687765,1.08342235,2628.8,2628.7,22.58735]
[1749022689162,1.08342235,2628.8,2628.7,5.22935]
[1749022689459,1.84485441,2628.8,2628.7,4.469]
[1749022689666,1.84485441,2628.8,2628.7,21.825]
[1749022690155,0.76038,2628.6,2628.5,0.00570852]
[1749022690358,5.05271441,2628.6,2628.5,17.36070852]
[1749022690751,6.31241441,2628.6,2628.5,17.36070852]
[1749022692555,4.29233441,2628.6,2628.5,18.12111852]
[1749022692865,4.29233441,2628.6,2628.5,18.73921852]
[1749022693254,1.08439439,2628.6,2628.5,18.73921852]
[1749022693567,1.84477439,2628.6,2628.5,18.73921852]
[1749022694563,1.84477439,2628.6,2628.5,0.00570852]
[1749022694770,5.05257439,2628.6,2628.5,0.00570852]
[1749022695067,5.05257439,2628.6,2628.5,18.12211852]
[1749022696163,4.29219439,2628.6,2628.5,18.12211852]
[1749022696366,1.08439439,2628.6,2628.5,21.32991852]
[1749022696562,1.08439439,2628.6,2628.5,22.59911852]
[1749022699062,1.08439439,2628.6,2628.5,21.32991852]
[1749022699269,1.08439439,2628.6,2628.5,18.12111852]
[1749022699661,1.08439439,2628.6,2628.5,19.33801852]
[1749022701271,0.76032,2628.8,2628.7,0.76035]
[1749022701474,0.76032,2628.8,2628.7,5.22735]
[1749022701671,1.84531224,2628.8,2628.7,5.22735]
[1749022702076,1.84531224,2628.8,2628.7,22.58235]
[1749022702275,3.16541224,2628.8,2628.7,22.58235]
[1749022703678,1.84531224,2628.8,2628.7,22.58235]
[1749022704178,0.76032,2628.8,2628.7,22.58235]
[1749022704371,1.84511153,2628.8,2628.7,22.58235]
[1749022705374,1.84489433,2628.8,2628.7,22.58235]
[1749022706173,1.84489433,2628.8,2628.7,4.467]
[1749022706578,0.76038,2628.6,2628.5,17.35970852]
[1749022706882,5.05275433,2628.6,2628.5,0.00570852]
[1749022707083,5.05275433,2628.6,2628.5,0.07275454]
[1749022707381,0.76058,2627.9,2627.8,4.467]
[1749022707678,5.05295433,2627.9,2627.8,21.821]
[1749022708469,5.05295433,2627.9,2627.8,4.467]
[1749022708676,0.76064,2627.7,2627.6,0.00570852]
[1749022708978,1.84521433,2627.7,2627.6,0.00570852]
[1749022709174,1.84288962,2627.7,2627.6,0.00570852]
[1749022709379,3.12318962,2627.7,2627.6,0.00570852]
[1749022712371,3.12318962,2627.7,2627.6,0.76637852]
[1749022712683,3.12318962,2627.7,2627.6,0.00570852]
[1749022712985,3.11977385,2627.7,2627.6,0.00570852]
[1749022713877,3.11977385,2627.7,2627.6,0.76637852]
[1749022714181,3.11977385,2627.7,2627.6,0.00570852]
[1749022715077,3.11977385,2627.7,2627.6,0.07275454]
[1749022716187,3.11977385,2627.7,2627.6,0.83342454]
[1749022716683,3.11977385,2627.7,2627.6,0.07275454]
[1749022716872,3.11783848,2627.7,2627.6,0.07275454]
[1749022718180,3.11783848,2627.7,2627.6,0.83342454]
[1749022718883,1.07689848,2627.7,2627.6,0.83342454]
[1749022719089,1.07689848,2627.7,2627.6,1.47982454]
[1749022719277,0.76064,2627.7,2627.6,1.47982454]
[1749022719477,1.8373311,2627.7,2627.6,0.71915454]
[1749022719781,1.8373311,2627.7,2627.6,1.47982454]
[1749022719986,1.8373311,2627.7,2627.6,0.71915454]
[1749022720581,1.8373311,2627.7,2627.6,1.47982454]
[1749022720981,1.83715322,2627.7,2627.6,1.47982454]
[1749022722385,1.83715322,2627.7,2627.6,0.71915454]
[1749022722787,1.83715322,2627.7,2627.6,1.47982454]
[1749022724986,1.83700742,2627.7,2627.6,1.47982454]
[1749022728593,1.07636742,2627.7,2627.6,1.47982454]
[1749022728993,1.83818257,2627.7,2627.6,1.47982454]
[1749022732994,1.84857669,2627.7,2627.6,18.83982454]
[1749022733491,1.84857669,2627.7,2627.6,18.07915454]
[1749022734897,0.76076,2627.3,2627.2,0.8681]
[1749022735294,1.8493044,2627.3,2627.2,0.8681]
[1749022735496,0.76079,2627.2,2627.1,21.828]
[1749022735791,2.4859344,2627.2,2627.1,21.828]
[1749022735998,2.4859344,2627.2,2627.1,22.58881]
[1749022736293,1.0885444,2627.2,2627.1,22.58881]
[1749022736499,1.0885444,2627.2,2627.1,23.79201]
[1749022736895,0.76645852,2627.4,2627.3,0.76076]
[1749022737091,1.85717808,2627.4,2627.3,0.76076]
[1749022739393,1.09642808,2627.4,2627.3,0.76076]
[1749022739803,1.09642808,2627.4,2627.3,1.42836]
[1749022740803,1.09662498,2627.4,2627.3,1.42836]
[1749022743397,0.00570852,2627.4,2627.3,1.42836]
[1749022743701,1.09089763,2627.4,2627.3,2.66306]
[1749022744500,1.09089763,2627.4,2627.3,2.73010602]
[1749022747206,5.05942763,2627.4,2627.3,18.18780602]
[1749022747399,5.05935163,2627.4,2627.3,18.18780602]
[1749022747705,6.37575163,2627.4,2627.3,18.18780602]
[1749022748004,5.61502163,2627.4,2627.3,18.18780602]
[1749022748397,6.37575163,2627.4,2627.3,18.18780602]
[1749022749105,5.61502163,2627.4,2627.3,18.18780602]
[1749022749304,6.37575163,2627.4,2627.3,18.18780602]
[1749022749504,6.98775163,2627.4,2627.3,18.18780602]
[1749022749905,6.22702163,2627.4,2627.3,18.18780602]
[1749022750101,6.98775163,2627.4,2627.3,0.82780602]
[1749022750305,6.98775163,2627.4,2627.3,18.18780602]
[1749022750607,6.22702163,2627.4,2627.3,18.18780602]
[1749022751496,6.22710781,2627.4,2627.3,18.18780602]
[1749022754113,6.98783781,2627.4,2627.3,0.06704602]
[1749022754303,11.98783781,2627.4,2627.3,0.06704602]
[1749022755415,11.98773318,2627.4,2627.3,0.06704602]
[1749022757508,6.98773318,2627.4,2627.3,0.06704602]
[1749022759515,6.98695422,2627.4,2627.3,0.06704602]
[1749022763319,5.89693,2627.4,2627.3,0.06704602]
[1749022763510,6.98647642,2627.4,2627.3,0.06704602]
[1749022764410,6.98647454,2627.4,2627.3,0.06704602]
[1749022765617,5.67007454,2627.4,2627.3,0.06704602]
[1749022765815,5.67007454,2627.4,2627.3,0.82780602]
[1749022766007,4.29734454,2627.4,2627.3,0.82780602]
[1749022766712,5.05807454,2627.4,2627.3,1.45330602]
[1749022766915,4.29734454,2627.4,2627.3,1.45330602]
[1749022767417,5.05813741,2627.4,2627.3,1.45330602]
[1749022767715,4.29740741,2627.4,2627.3,1.45330602]
[1749022768421,5.05813741,2627.4,2627.3,1.45330602]
[1749022769115,5.05813741,2627.4,2627.3,0.69254602]
[1749022769519,5.05813741,2627.4,2627.3,1.45330602]
[1749022770410,5.05816741,2627.4,2627.3,1.45330602]
[1749022770711,5.05816741,2627.4,2627.3,0.69254602]
[1749022770908,5.05816741,2627.4,2627.3,0.06704602]
[1749022771611,5.0579555,2627.4,2627.3,0.06704602]
[1749022772115,5.6990555,2627.4,2627.3,0.06704602]
[1749022772508,5.6990555,2627.4,2627.3,0.82783602]
[1749022772813,5.0579555,2627.4,2627.3,0.82783602]
[1749022773314,5.0579555,2627.4,2627.3,0.06704602]
[1749022774720,5.0579555,2627.4,2627.3,0.82784602]
[1749022775416,3.96856,2627.4,2627.3,0.82784602]
[1749022775622,5.05905383,2627.4,2627.3,0.82784602]
[1749022776123,5.05905383,2627.4,2627.3,0.06704602]
[1749022776620,5.05905383,2627.4,2627.3,0.82784602]
[1749022778222,5.05905383,2627.4,2627.3,0.06704602]
[1749022778523,5.05905383,2627.4,2627.3,0.82784602]
[1749022779514,5.05945837,2627.4,2627.3,0.82784602]
[1749022779719,4.29869837,2627.4,2627.3,1.44104602]
[1749022780022,4.29869837,2627.4,2627.3,5.90904602]
[1749022780225,4.29869837,2627.4,2627.3,7.11364602]
[1749022780922,5.05946837,2627.4,2627.3,7.11364602]
[1749022782025,4.29869837,2627.4,2627.3,7.11364602]
[1749022782414,5.05946837,2627.4,2627.3,7.11364602]
[1749022782621,5.05946837,2627.4,2627.3,5.14824602]
[1749022783013,5.05946837,2627.4,2627.3,5.90904602]
[1749022783423,5.05972413,2627.4,2627.3,5.90904602]
[1749022783618,5.05972413,2627.4,2627.3,0.68024602]
[1749022783923,5.05972413,2627.4,2627.3,22.50824602]
[1749022785431,5.05972413,2627.4,2627.3,0.68024602]
[1749022785621,5.05972413,2627.4,2627.3,17.42704602]
[1749022785824,1.90204,2627.3,2626.9,4.47370852]
[1749022786028,0.76088,2627.0,2626.9,4.47370852]
[1749022786326,0.76088,2627.0,2626.9,21.83370852]
[1749022786327,1.85203413,2627.0,2626.9,21.83370852]
[1749022786530,1.85203413,2627.0,2626.9,22.59462852]
[1749022787418,1.85226148,2627.0,2626.9,22.59462852]
[1749022789232,1.85226148,2627.0,2626.9,22.66167454]
[1749022791131,1.85226148,2627.0,2626.9,21.90175454]
[1749022791329,0.76088,2627.0,2626.9,21.90175454]
[1749022791526,1.85176241,2627.0,2626.9,21.90175454]
[1749022791724,1.85176241,2627.0,2626.9,22.66267454]
[1749022792832,1.85176241,2627.0,2626.9,21.90175454]
[1749022793733,1.85176241,2627.0,2626.9,22.66267454]
[1749022794130,1.85176241,2627.0,2626.9,17.43375454]
[1749022795236,1.85176241,2627.0,2626.9,18.19467454]
[1749022795433,1.85191283,2627.0,2626.9,18.19467454]
[1749022796227,0.76088,2627.0,2626.9,18.19467454]
[1749022796428,1.85170227,2627.0,2626.9,18.19467454]
[1749022797136,1.85170227,2627.0,2626.9,17.43375454]
[1749022799435,0.76088,2627.0,2626.9,17.43375454]
[1749022799732,1.85134391,2627.0,2626.9,17.43375454]
[1749022800339,1.85134391,2627.0,2626.9,0.07275454]
[1749022800637,3.11194391,2627.0,2626.9,17.43375454]
[1749022803540,3.11194391,2627.0,2626.9,0.07275454]
[1749022805940,3.11214255,2627.0,2626.9,0.07275454]
[1749022808446,1.85154255,2627.0,2626.9,0.07275454]
[1749022809941,1.85421519,2627.0,2626.9,0.83367454]
[1749022810141,1.85421519,2627.0,2626.9,2.12017454]
[1749022810344,1.09333519,2627.0,2626.9,2.12017454]
[1749022810746,0.45918861,2627.0,2626.9,7.12017454]
[1749022810945,3.2078,2627.4,2627.3,0.7608]
[1749022811147,3.2078,2627.4,2627.3,5.2288]
[1749022811441,0.00570852,2627.6,2627.5,0.76074]
[1749022811645,0.76641852,2627.6,2627.5,18.12274]
[1749022811848,0.00570852,2627.6,2627.5,18.12274]
[1749022812049,0.76641852,2627.6,2627.5,18.75664]
[1749022813152,0.76641852,2627.6,2627.5,17.9959]
[1749022813649,0.76641852,2627.6,2627.5,18.75664]
[1749022814849,0.73688824,2627.6,2627.5,18.75664]
[1749022820353,0.73688824,2627.6,2627.5,17.9959]
[1749022820554,0.73688824,2627.6,2627.5,0.70094602]
[1749022820755,0.73688824,2627.6,2627.5,18.05894602]
[1749022821351,3.94468824,2627.6,2627.5,18.05894602]
[1749022821753,3.94468824,2627.6,2627.5,18.81969602]
[1749022822255,3.94468824,2627.6,2627.5,18.05894602]
[1749022822551,3.94468824,2627.6,2627.5,18.81969602]
[1749022822754,5.03363924,2627.6,2627.5,18.81969602]
[1749022824056,5.03363924,2627.6,2627.5,18.05894602]
[1749022824657,5.03352844,2627.6,2627.5,18.81969602]
[1749022824957,3.94468824,2627.6,2627.5,18.05894602]
[1749022825160,3.94468824,2627.6,2627.5,17.42504602]
[1749022826062,5.03347565,2627.6,2627.5,0.06704602]
[1749022826258,5.03347565,2627.6,2627.5,17.42304602]
[1749022826963,5.03339849,2627.6,2627.5,17.42304602]
[1749022828154,5.03339849,2627.6,2627.5,18.18379602]
[1749022828763,5.03339849,2627.6,2627.5,19.40239602]
[1749022830960,5.03361838,2627.6,2627.5,19.40239602]
[1749022831261,5.03361838,2627.6,2627.5,18.18379602]
[1749022834656,5.03361838,2627.6,2627.5,17.42304602]
[1749022834861,5.03361838,2627.6,2627.5,18.18379602]
[1749022835161,5.03434249,2627.6,2627.5,18.18379602]
[1749022835558,5.03434249,2627.6,2627.5,17.42304602]
[1749022836053,5.03434249,2627.6,2627.5,18.18379602]
[1749022836255,5.03434249,2627.6,2627.5,17.42304602]
[1749022837462,5.03434249,2627.6,2627.5,18.18379602]
[1749022838967,5.03660333,2627.6,2627.5,18.18379602]
[1749022842171,5.03660333,2627.6,2627.5,17.42304602]
[1749022843072,5.06090576,2627.6,2627.5,17.42304602]
[1749022844171,5.06090576,2627.6,2627.5,18.04124602]
[1749022845274,5.06090576,2627.6,2627.5,18.80199602]
[1749022847073,5.06107836,2627.6,2627.5,18.80199602]
[1749022848379,5.06115271,2627.6,2627.5,18.80199602]
[1749022849581,0.76084,2627.2,2627.1,4.465]
[1749022849770,5.08510447,2627.2,2627.1,4.465]
[1749022849970,5.08510447,2627.2,2627.1,21.818]
[1749022850777,5.08510447,2627.2,2627.1,22.57887]
[1749022851171,3.96864,2627.2,2627.1,22.57887]
[1749022851467,5.08418029,2627.2,2627.1,22.57887]
[1749022851675,5.08418029,2627.2,2627.1,21.818]
[1749022852877,5.08418029,2627.2,2627.1,22.57887]
[1749022853580,5.08418029,2627.2,2627.1,4.465]
[1749022853782,5.08418029,2627.2,2627.1,21.819]
[1749022854277,5.08418029,2627.2,2627.1,4.465]